fUST/lending_fUST_20250123
["ID","MTS","AMOUNT","RATE_DAILY","PERIOD"]
[350085810,1737611434271,-505.20884796,0.00019178,2]
[350085811,1737611434281,-502.23257628,0.00019178,2]
[350085812,1737611434290,-511.56299706,0.00019178,2]
[350085813,1737611434299,-502.63206635,0.00019178,2]
[350085814,1737611434309,-412.84799999,0.00019178,2]
[350085815,1737611434318,-503.36770025,0.00019178,2]
[350085816,1737611434327,-595.51494683,0.00019178,2]
[350085817,1737611434336,-501.84105445,0.00019178,2]
[350085818,1737611434346,-303.97531923,0.00019178,2]
[350085819,1737611434355,-500.0,0.00019178,2]
[350085820,1737611434365,-500.0,0.00019178,2]
[350085821,1737611434376,-502.73988942,0.00019178,2]
[350085822,1737611434391,-501.48953225,0.00019178,2]
[350085824,1737611434406,-500.0,0.00019178,2]
[350085826,1737611434416,-501.53420646,0.00019178,2]
[350085828,1737611434425,-500.0,0.00019178,2]
[350085830,1737611434435,-507.48073849,0.00019178,2]
[350085832,1737611434445,-500.0,0.00019178,7]
[350085834,1737611434456,-507.87861472,0.00019178,2]
[350085836,1737611434466,-510.93383159,0.00019178,2]
[350085838,1737611434475,-509.25201139,0.00019178,2]
[350085840,1737611434484,-511.44417281,0.00019178,2]
[350085842,1737611434493,-503.31343967,0.00019178,2]
[350085844,1737611434502,-510.9782318,0.00019178,2]
[350085846,1737611434512,-500.0,0.00019178,2]
[350085847,1737611434521,-255.27790339,0.00019178,2]
[350085848,1737611434530,-508.27120432,0.00019178,2]
[350085849,1737611434539,-505.49672663,0.00019178,2]
[350085850,1737611434548,-500.0,0.00019178,2]
[350085851,1737611434558,-507.00607097,0.00019178,2]
[350085852,1737611434567,-460.25742153,0.00019178,2]
[350085853,1737611434577,-500.0,0.00019178,2]
[350085854,1737611434587,-511.71516309,0.00019178,2]
[350085855,1737611434599,-507.08201423,0.00019178,2]
[350085856,1737611434608,-500.0,0.00019178,2]
[350085857,1737611434618,-518.23697915,0.00019178,2]
[350085858,1737611434627,-506.19761223,0.00019178,2]
[350085859,1737611434638,-500.0,0.00019178,2]
[350085860,1737611434648,-500.0,0.00019178,2]
[350085861,1737611434657,-517.31983354,0.00019178,2]
[350085862,1737611434669,-585.87407773,0.00019178,2]
[350085863,1737611434679,-500.0,0.00019178,2]
[350085864,1737611434688,-504.32654223,0.00019178,2]
[350085865,1737611434698,-710.05,0.00019178,2]
[350085866,1737611434709,-500.0,0.00019178,2]
[350085867,1737611434719,-505.835853,0.00019178,2]
[350085868,1737611434729,-188.0,0.00019178,2]
[350085869,1737611434739,-505.06704284,0.00019178,2]
[350085870,1737611434748,-503.40673667,0.00019178,2]
[350085871,1737611434758,-826.61,0.00019178,2]
[350085872,1737611434767,-500.0,0.00019178,2]
[350085873,1737611434776,-519.9174134,0.00019178,2]
[350085874,1737611434785,-500.0,0.00019178,2]
[350085875,1737611434794,-380.60102646,0.00019178,2]
[350085880,1737611438708,-23.30691189,0.00019178,2]
[350085882,1737611438755,-98.03970037,0.00019178,2]
[350085884,1737611438765,-503.18615525,0.00019178,2]
[350085886,1737611438775,-503.94709862,0.00019178,2]
[350085888,1737611438784,-501.45990688,0.00019178,2]
[350085890,1737611438794,-525.76982968,0.00019178,2]
[350085892,1737611438803,-500.0,0.00019178,2]
[350085894,1737611438812,-500.0,0.00019178,2]
[350085906,1737611438910,-509.16554326,0.00019178,2]
[350085909,1737611438920,-196.05168427,0.00019178,2]
[350085911,1737611438930,-500.0,0.00019178,2]
[350085913,1737611438939,-301.50683969,0.00019178,2]
[350085915,1737611438948,-502.69307674,0.00019178,2]
[350085917,1737611438958,-509.7599702,0.00019178,2]
[350085919,1737611438968,-500.0,0.00019178,2]
[350085920,1737611438978,-500.0,0.00019178,2]
[350085922,1737611438987,-500.0,0.00019178,2]
[350085924,1737611438996,-500.0,0.00019178,2]
[350085927,1737611439006,-500.0,0.00019178,2]
[350085929,1737611439016,-500.0,0.00019178,2]
[350085931,1737611439025,-1008.9852142,0.00019178,2]
[350085933,1737611439034,-508.4948927,0.00019178,2]
[350085935,1737611439044,-519.98,0.00019178,2]
[350085937,1737611439053,-571.27604923,0.00019178,2]
[350085939,1737611439063,-801.59,0.00019178,2]
[350085941,1737611439074,-503.07949586,0.00019178,2]
[350085943,1737611439083,-500.0,0.00019178,2]
[350085945,1737611439092,-502.21734836,0.00019178,2]
[350085946,1737611439101,-503.6192814,0.00019178,2]
[350085948,1737611439111,-500.0,0.00019178,2]
[350085950,1737611439120,-501.82874616,0.00019178,2]
[350085951,1737611439129,-511.9913599,0.00019178,2]
[350085953,1737611439138,-503.06815436,0.00019178,2]
[350085955,1737611439148,-546.34121138,0.00019178,2]
[350085957,1737611439157,-505.80182755,0.00019178,2]
[350085959,1737611439166,-503.59729214,0.00019178,2]
[350085961,1737611439176,-500.0,0.00019178,2]
[350085963,1737611439185,-508.54828657,0.00019178,2]
[350085965,1737611439195,-500.0,0.00019178,2]
[350085967,1737611439204,-501.6966905,0.00019178,2]
[350085969,1737611439215,-500.0,0.00019178,2]
[350085971,1737611439224,-511.19434627,0.00019178,2]
[350085973,1737611439234,-500.0,0.00019178,2]
[350085975,1737611439244,-507.49662458,0.00019178,2]
[350085977,1737611439253,-502.73551825,0.00019178,2]
[350085979,1737611439263,-500.88736168,0.00019178,2]
[350085981,1737611439272,-500.0,0.00019178,2]
[350085983,1737611439281,-500.0,0.00019178,2]
[350085985,1737611439291,-500.0,0.00019178,2]
[350085988,1737611439300,-500.0,0.00019178,2]
[350085990,1737611439309,-500.0,0.00019178,2]
[350085991,1737611439319,-500.0,0.00019178,2]
[350085993,1737611439328,-500.0,0.00019178,2]
[350085996,1737611439337,-500.0,0.00019178,2]
[350085998,1737611439347,-500.0,0.00019178,2]
[350085999,1737611439355,-500.0,0.00019178,2]
[350086001,1737611439365,-500.0,0.00019178,2]
[350086004,1737611439374,-500.0,0.00019178,2]
[350086005,1737611439383,-189.22,0.00019178,2]
[350086008,1737611439393,-500.0,0.00019178,2]
[350086010,1737611439402,-500.0,0.00019178,2]
[350086011,1737611439411,-504.51740184,0.00019178,2]
[350086013,1737611439420,-500.0,0.00019178,2]
[350086016,1737611439430,-503.80104371,0.00019178,2]
[350086018,1737611439440,-501.90351817,0.00019178,2]
[350086020,1737611439449,-500.0,0.00019178,2]
[350086022,1737611439460,-504.88871867,0.00019178,2]
[350086024,1737611439470,-501.62224702,0.00019178,2]
[350086026,1737611439480,-502.00914635,0.00019178,2]
[350086028,1737611439489,-501.58467183,0.00019178,2]
[350086030,1737611439499,-502.52072628,0.00019178,2]
[350086032,1737611439508,-274.06191174,0.00019178,2]
[350086034,1737611439517,-506.32840955,0.00019178,2]
[350086036,1737611439526,-504.09546336,0.00019178,2]
[350086038,1737611439536,-507.08494725,0.00019178,2]
[350086040,1737611439546,-504.85131158,0.00019178,2]
[350086042,1737611439556,-500.0,0.00019178,2]
[350086044,1737611439566,-510.16354574,0.00019178,2]
[350086046,1737611439575,-500.0,0.00019178,2]
[350086048,1737611439586,-504.51319734,0.00019178,2]
[350086050,1737611439598,-501.21908384,0.00019178,2]
[350086052,1737611439608,-500.0,0.00019178,2]
[350086054,1737611439618,-502.14329473,0.00019178,2]
[350086056,1737611439627,-500.0,0.00019178,2]
[350086058,1737611439639,-504.0755195,0.00019178,2]
[350086060,1737611439648,-504.57656751,0.00019178,2]
[350086062,1737611439662,-500.8753805,0.00019178,2]
[350086064,1737611439672,-500.89674216,0.00019178,2]
[350086066,1737611439683,-501.71759928,0.00019178,2]
[350086068,1737611439692,-501.02342008,0.00019178,2]
[350086070,1737611439702,-501.61656568,0.00019178,2]
[350086072,1737611439712,-500.0,0.00019178,2]
[350086074,1737611439721,-501.79679425,0.00019178,2]
[350086076,1737611439730,-151.24127972,0.00019178,2]
[350086078,1737611439741,-500.0,0.00019178,2]
[350086080,1737611439753,-500.0,0.00019178,2]
[350086082,1737611439763,-501.96243789,0.00019178,2]
[350086084,1737611439773,-507.71450824,0.00019178,2]
[350086086,1737611439783,-500.0,0.00019178,2]
[350086088,1737611439792,-505.69727601,0.00019178,2]
[350086090,1737611439801,-502.43457902,0.00019178,2]
[350086092,1737611439811,-509.5614258,0.00019178,2]
[350086094,1737611439820,-503.79456387,0.00019178,2]
[350086096,1737611439829,-501.17452008,0.00019178,2]
[350086098,1737611439839,-508.31342489,0.00019178,2]
[350086100,1737611439848,-526.49645818,0.00019178,2]
[350086102,1737611439858,-500.0,0.00019178,2]
[350086104,1737611439867,-505.34122305,0.00019178,2]
[350086106,1737611439877,-500.27657058,0.00019178,2]
[350086108,1737611439888,-500.59016103,0.00019178,2]
[350086111,1737611439898,-502.84714109,0.00019178,2]
[350086113,1737611439907,-506.05382003,0.00019178,2]
[350086115,1737611439916,-500.96146399,0.00019178,2]
[350086117,1737611439926,-503.50695157,0.00019178,2]
[350086118,1737611439935,-508.54004725,0.00019178,2]
[350086119,1737611439945,-504.42693116,0.00019178,2]
[350086120,1737611439955,-504.49286891,0.00019178,2]
[350086121,1737611439966,-502.1520514,0.00019178,2]
[350086122,1737611439975,-504.39490499,0.00019178,2]
[350086123,1737611439986,-500.0,0.00019178,2]
[350086124,1737611439996,-509.16605168,0.00019178,2]
[350086125,1737611440005,-500.0,0.00019178,2]
[350086126,1737611440014,-503.17562315,0.00019178,2]
[350086127,1737611440023,-500.0,0.00019178,2]
[350086128,1737611440033,-501.6620448,0.00019178,2]
[350086129,1737611440043,-500.0,0.00019178,2]
[350086130,1737611440053,-504.33126113,0.00019178,2]
[350086131,1737611440063,-525.91483927,0.00019178,2]
[350086132,1737611440073,-500.0,0.00019178,2]
[350086133,1737611440082,-503.09288543,0.00019178,2]
[350086134,1737611440092,-503.09391251,0.00019178,2]
[350086135,1737611440101,-500.0,0.00019178,2]
[350086136,1737611440110,-2406.53,0.00019178,2]
[350086137,1737611440119,-61.64264187,0.00019178,2]
[350086138,1737611440232,-445.21261628,0.00019178,2]
[350086139,1737611440242,-504.81448322,0.00019178,2]
[350086140,1737611440251,-500.0,0.00019178,2]
[350086141,1737611440261,-500.0,0.00019178,2]
[350086142,1737611440271,-517.32332175,0.00019178,2]
[350086143,1737611440280,-500.0,0.00019178,2]
[350086144,1737611440290,-1777.28,0.00019178,2]
[350086145,1737611440299,-500.0,0.00019178,2]
[350086146,1737611440309,-1174.77,0.00019178,2]
[350086147,1737611440318,-500.0,0.00019178,2]
[350086148,1737611440328,-500.0,0.00019178,2]
[350086149,1737611440337,-505.58707379,0.00019178,2]
[350086150,1737611440347,-500.0,0.00019178,2]
[350086151,1737611440356,-500.0,0.00019178,2]
[350086152,1737611440366,-261.8058118,0.00019178,2]
[350086153,1737611440375,-502.96487336,0.00019178,2]
[350086154,1737611440385,-152.4110018,0.00019178,2]
[350086155,1737611440395,-513.27454295,0.00019178,2]
[350086157,1737611440406,-500.0,0.00019178,2]
[350086159,1737611440415,-500.0,0.00019178,2]
[350086161,1737611440424,-500.0,0.00019178,2]
[350086163,1737611440438,-501.29372841,0.00019178,2]
[350086164,1737611440447,-500.0,0.00019178,2]
[350086165,1737611440456,-763.02,0.00019178,2]
[350086166,1737611440468,-506.95106983,0.00019178,2]
[350086167,1737611440477,-896.97,0.00019178,2]
[350086168,1737611440485,-524.61371056,0.00019178,2]
[350086169,1737611440500,-501.29465332,0.00019178,2]
[350086170,1737611440510,-511.31424969,0.00019178,2]
[350086171,1737611440519,-509.80448021,0.00019178,2]
[350086172,1737611440527,-504.75401422,0.00019178,2]
[350086173,1737611440536,-507.35390157,0.00019178,2]
[350086174,1737611440546,-525.14400094,0.00019178,2]
[350086175,1737611440555,-502.6719533,0.00019178,2]
[350086176,1737611440564,-500.0,0.00019178,2]
[350086177,1737611440573,-2367.31,0.00019178,2]
[350086178,1737611440583,-502.66341942,0.00019178,2]
[350086179,1737611440596,-505.40621054,0.00019178,2]
[350086180,1737611440605,-510.55851843,0.00019178,2]
[350086181,1737611440614,-500.0,0.00019178,2]
[350086182,1737611440624,-501.15699174,0.00019178,2]
[350086184,1737611440634,-9021.04,0.00019178,2]
[350086186,1737611440644,-500.60495965,0.00019178,2]
[350086188,1737611440653,-500.0,0.00019178,2]
[350086190,1737611440664,-500.0,0.00019178,2]
[350086192,1737611440674,-500.0,0.00019178,2]
[350086194,1737611440684,-563.39362249,0.00019178,2]
[350086205,1737611440693,-496.05743697,0.00019178,2]
[350086207,1737611440788,-202.92838485,0.00019178,2]
[350086208,1737611440797,-502.38068895,0.00019178,2]
[350086209,1737611440807,-500.0,0.00019178,2]
[350086210,1737611440816,-500.0,0.00019178,2]
[350086212,1737611440826,-500.0,0.00019178,2]
[350086214,1737611440835,-502.30546051,0.00019178,2]
[350086216,1737611440845,-349.02,0.00019178,2]
[350086217,1737611440854,-505.273652,0.00019178,2]
[350086218,1737611440863,-896.29,0.00019178,2]
[350086220,1737611440872,-502.40671995,0.00019178,2]
[350086222,1737611440881,-511.28449919,0.00019178,2]
[350086224,1737611440892,-500.0,0.00019178,2]
[350086226,1737611440901,-500.0,0.00019178,2]
[350086227,1737611440910,-509.95709142,0.00019178,2]
[350086229,1737611440919,-500.0,0.00019178,2]
[350086230,1737611440929,-3011.31,0.00019178,2]
[350086231,1737611440938,-500.0,0.00019178,2]
[350086232,1737611440947,-501.06724656,0.00019178,2]
[350086233,1737611440956,-823.58,0.00019178,2]
[350086234,1737611440967,-503.2118655,0.00019178,2]
[350086235,1737611440976,-507.86632431,0.00019178,2]
[350086236,1737611440986,-500.95105987,0.00019178,2]
[350086237,1737611440995,-510.9763212,0.00019178,2]
[350086238,1737611441004,-508.77286645,0.00019178,2]
[350086239,1737611441013,-500.0,0.00019178,2]
[350086240,1737611441022,-501.7109289,0.00019178,2]
[350086242,1737611441031,-500.0,0.00019178,2]
[350086244,1737611441041,-502.91325473,0.00019178,2]
[350086245,1737611441050,-504.13680841,0.00019178,2]
[350086246,1737611441059,-500.0,0.00019178,2]
[350086247,1737611441068,-500.0,0.00019178,2]
[350086248,1737611441078,-500.0,0.00019178,2]
[350086249,1737611441087,-503.82578238,0.00019178,2]
[350086250,1737611441097,-506.77486532,0.00019178,2]
[350086251,1737611441106,-500.0,0.00019178,2]
[350086252,1737611441116,-501.86310297,0.00019178,2]
[350086253,1737611441125,-2008.36665941,0.00019178,2]
[350086254,1737611441138,-1453.92334059,0.00019178,2]
[350086255,1737611441147,-514.06805522,0.00019178,2]
[350086256,1737611441157,-500.0,0.00019178,2]
[350086257,1737611441166,-306.32542222,0.00019178,2]
[350086258,1737611441183,-220.00138824,0.00019178,2]
[350086259,1737611441192,-502.2956817,0.00019178,2]
[350086260,1737611441201,-500.98656659,0.00019178,2]
[350086261,1737611441210,-500.0,0.00019178,2]
[350086262,1737611441219,-503.24834067,0.00019178,2]
[350086263,1737611441229,-502.9177062,0.00019178,2]
[350086264,1737611441238,-1114.42,0.00019178,2]
[350086265,1737611441247,-503.03174119,0.00019178,2]
[350086266,1737611441256,-501.23405041,0.00019178,2]
[350086267,1737611441265,-500.0,0.00019178,2]
[350086268,1737611441274,-508.05234027,0.00019178,2]
[350086269,1737611441283,-500.0,0.00019178,2]
[350086270,1737611441292,-506.39749754,0.00019178,2]
[350086271,1737611441301,-501.73082616,0.00019178,2]
[350086272,1737611441310,-502.73815496,0.00019178,2]
[350086273,1737611441319,-224.08648255,0.00019178,2]
[350086274,1737611441328,-500.0,0.00019178,2]
[350086275,1737611441337,-1154.52,0.00019178,2]
[350086276,1737611441346,-502.1350011,0.00019178,2]
[350086277,1737611441355,-501.81287921,0.00019178,2]
[350086278,1737611441365,-509.84283566,0.00019178,2]
[350086279,1737611441374,-500.0,0.00019178,2]
[350086280,1737611441383,-505.65156173,0.00019178,2]
[350086281,1737611441392,-500.0,0.00019178,2]
[350086282,1737611441402,-500.0,0.00019178,2]
[350086283,1737611441411,-674.47,0.00019178,2]
[350086284,1737611441420,-500.0,0.00019178,2]
[350086285,1737611441430,-507.52515129,0.00019178,2]
[350086286,1737611441439,-510.92289812,0.00019178,2]
[350086287,1737611441448,-386.19506825,0.00019178,2]
[350086288,1737611441458,-505.80749344,0.00019178,2]
[350086289,1737611441468,-500.0,0.00019178,2]
[350086290,1737611441477,-500.0,0.00019178,2]
[350086291,1737611441487,-500.0,0.00019178,2]
[350086292,1737611441496,-2664.94615992,0.00019178,2]
[350086293,1737611441509,-512.85629558,0.00019178,2]
[350086342,1737611444071,-4322.4528865,0.00018986,2]
[350088937,1737612248294,185.058293,0.00013973,2]
[350088978,1737612632152,-401.34246296,0.00016418,2]
[350088980,1737612632163,-401.34246296,0.00016584,2]
[350088982,1737612632172,-300.0,0.00017732,2]
[350088984,1737612632182,-2366.03621384,0.00017733,2]
[350088988,1737612632219,-17184.0071259,0.00017733,2]
[350088991,1737612632231,-2033.51275176,0.00017733,2]
[350088993,1737612632241,-4219.8149346,0.00017793,2]
[350088995,1737612632251,-250.0,0.00017872,2]
[350088996,1737612632261,-262.962441,0.00017976,2]
[350088999,1737612632270,-419.683,0.0001822,2]
[350089001,1737612632280,-1945.05751124,0.00018739,2]
[350089002,1737612632296,-1869.03403965,0.00018739,2]
[350089008,1737612639998,-395.0,0.00018295,2]
[350089009,1737612640009,-4452.91956324,0.00018739,2]
[350089200,1737613127370,184.016139,0.00013973,2]
[350089241,1737613751164,484.20892179,0.00014909,2]
[350089242,1737613759448,484.20892179,0.00014909,2]
[350089279,1737613838200,-2501.50859189,0.00016387,2]
[350089280,1737613838212,-2501.50859189,0.00016552,2]
[350089281,1737613838222,-484.20892179,0.00016652,2]
[350089282,1737613838235,-262.962442,0.00017848,2]
[350089283,1737613838247,-417.651,0.0001822,2]
[350089284,1737613838259,-300.0,0.00018608,2]
[350089285,1737613838272,-12250.55686007,0.00018609,2]
[350089286,1737613838284,-150.321,0.00018815,2]
[350089287,1737613838297,-647.68060324,0.000189,2]
[350089288,1737613838312,-1238.60945297,0.000189,2]
[350089289,1737613838335,-54.06492549,0.000189,2]
[350089290,1737613838347,-502.34597196,0.00018903,2]
[350089291,1737613838360,-300.0,0.00019,2]
[350089292,1737613838372,-264.9,0.00019,2]
[350089293,1737613838384,-155.04,0.00019,2]
[350089294,1737613838395,-388.45575442,0.00019,2]
[350089295,1737613838406,-22.19334812,0.00019073,2]
[350089296,1737613838455,-575.66848365,0.00019073,2]
[350089297,1737613838467,-172.80445974,0.00019077,2]
[350089298,1737613838477,-3000.0,0.000191,2]
[350089299,1737613838487,-300.0,0.000191,8]
[350089300,1737613838498,-771.35,0.00019168,3]
[350089301,1737613838508,-500.0,0.00019173,2]
[350089302,1737613838520,-500.0,0.00019173,2]
[350089303,1737613838531,-501.14044194,0.00019173,2]
[350089304,1737613838543,-500.0,0.00019173,2]
[350089305,1737613838555,-414.21832556,0.00019173,2]
[350089306,1737613838567,-500.0,0.00019173,2]
[350089307,1737613838580,-523.53733128,0.00019173,2]
[350089308,1737613838592,-500.0,0.00019173,2]
[350089309,1737613838603,-500.0,0.00019173,2]
[350089310,1737613838616,-500.0,0.00019173,2]
[350089311,1737613838627,-500.0,0.00019173,2]
[350089312,1737613838637,-501.67274398,0.00019173,2]
[350089313,1737613838647,-1431.40363778,0.00019176,5]
[350089314,1737613838656,-260.77941777,0.00019177,2]
[350089315,1737613838667,-1974.73673541,0.00019177,5]
[350089657,1737614361075,1000.0,0.00023,120]
[350089658,1737614436183,400.0,0.00013973,2]
[350089664,1737614787798,4921.86213404,0.00015055,2]
[350089665,1737614787833,872.87786596,0.00015055,2]
[350089728,1737615032809,-284.875978,0.0001614,2]
[350089730,1737615032819,-284.875978,0.00016303,2]
[350089732,1737615032828,-1024.130027,0.00017437,2]
[350089734,1737615032838,-202.1883849,0.00017534,2]
[350089736,1737615032848,-780.357228,0.00017649,2]
[350089738,1737615032857,-369.0927659,0.00017682,2]
[350089740,1737615032867,-10219.7850801,0.00017773,2]
[350089742,1737615032876,-284.875978,0.00017847,2]
[350089744,1737615032885,-416.194,0.0001822,2]
[350089746,1737615032894,-395.0,0.00018771,2]
[350089748,1737615032903,-155.04,0.00018771,2]
[350089750,1737615032912,-157.423547,0.00018816,15]
[350089752,1737615032921,-157.423547,0.00018816,5]
[350089754,1737615032930,-1026.6355318,0.00018986,2]
[350089756,1737615032940,-1000.0,0.00019,19]
[350089758,1737615032949,-6218.05772012,0.00019084,5]
[350089760,1737615032958,-715.70181889,0.00019084,5]
[350089762,1737615032967,-49413.12455241,0.00019084,2]
[350089764,1737615032977,-300.0,0.000191,8]
[350089766,1737615032987,-30000.0,0.000191,2]
[350089768,1737615032996,-151.0,0.000191,2]
[350089770,1737615033005,-453.922,0.0001911,2]
[350089772,1737615033014,-500.0,0.00019171,2]
[350089774,1737615033025,-500.0,0.00019171,2]
[350089776,1737615033034,-500.0,0.00019171,2]
[350089778,1737615033047,-500.0,0.00019171,2]
[350089780,1737615033059,-500.0,0.00019171,2]
[350089781,1737615033068,-500.0,0.00019171,2]
[350089784,1737615033078,-500.0,0.00019171,2]
[350089785,1737615033088,-500.0,0.00019171,2]
[350089788,1737615033098,-500.0,0.00019171,2]
[350089789,1737615033108,-500.0,0.00019171,2]
[350089792,1737615033117,-500.0,0.00019173,2]
[350089793,1737615033126,-500.0,0.00019173,2]
[350089795,1737615033136,-500.0,0.00019173,2]
[350089798,1737615033145,-500.0,0.00019173,2]
[350089800,1737615033156,-500.0,0.00019173,2]
[350089802,1737615033165,-500.0,0.00019173,2]
[350089803,1737615033175,-235.92224368,0.00019173,2]
[350089805,1737615033184,-500.0,0.00019173,2]
[350089807,1737615033193,-500.0,0.00019173,2]
[350089809,1737615033202,-512.69293189,0.00019177,2]
[350089811,1737615033212,-500.0,0.00019177,2]
[350089814,1737615033221,-202.72481481,0.00019177,2]
[350089816,1737615033232,-504.52084425,0.00019177,2]
[350089817,1737615033241,-500.0,0.00019178,2]
[350089820,1737615033251,-500.0,0.00019178,2]
[350089822,1737615033260,-504.78422808,0.00019178,2]
[350089824,1737615033270,-401.50328628,0.00019178,2]
[350089825,1737615033279,-511.23301543,0.00019178,2]
[350089827,1737615033289,-500.0,0.00019178,2]
[350089829,1737615033298,-500.0,0.00019178,2]
[350089831,1737615033308,-500.0,0.00019178,7]
[350089833,1737615033317,-511.29336251,0.00019178,2]
[350089836,1737615033327,-504.60982079,0.00019178,2]
[350089837,1737615033336,-159.4143493,0.00019178,2]
[350089840,1737615033346,-500.0,0.00019178,2]
[350089842,1737615033356,-500.0,0.00019178,2]
[350089843,1737615033365,-500.0,0.00019178,2]
[350089845,1737615033375,-502.06098866,0.00019178,2]
[350089848,1737615033385,-508.51595469,0.00019178,2]
[350089849,1737615033395,-500.0,0.00019178,2]
[350089851,1737615033405,-511.08188549,0.00019178,2]
[350089853,1737615033415,-453.59854809,0.00019178,2]
[350089855,1737615033425,-500.0,0.00019178,2]
[350089858,1737615033435,-188.0,0.00019178,2]
[350089860,1737615033445,-500.0,0.00019178,2]
[350089862,1737615033454,-507.71630146,0.00019178,2]
[350089864,1737615033465,-500.0,0.00019178,2]
[350089866,1737615033474,-500.0,0.00019178,2]
[350089868,1737615033484,-506.20240197,0.00019178,2]
[350089870,1737615033493,-833.2,0.00019178,2]
[350089872,1737615033503,-504.08966826,0.00019178,2]
[350089874,1737615033511,-502.71797753,0.00019178,2]
[350089876,1737615033521,-500.0,0.00019178,2]
[350089877,1737615033531,-500.0,0.00019178,2]
[350089879,1737615033541,-500.0,0.00019178,2]
[350089882,1737615033551,-476.95321346,0.00019178,2]
[350089884,1737615033560,-500.0,0.00019178,2]
[350089886,1737615033571,-500.0,0.00019178,2]
[350089887,1737615033580,-506.55253723,0.00019178,2]
[350089889,1737615033590,-151.0,0.00019178,2]
[350089891,1737615033600,-151.0,0.00019178,2]
[350089894,1737615033611,-512.07589334,0.00019178,2]
[350089896,1737615033620,-163.708846,0.00019178,2]
[350089898,1737615033630,-520.25,0.00019178,2]
[350089900,1737615033639,-151.0,0.00019178,2]
[350089902,1737615033649,-151.0,0.00019178,2]
[350089904,1737615033664,-500.0,0.00019178,2]
[350089906,1737615033673,-151.0,0.00019178,2]
[350089908,1737615033683,-151.0,0.00019178,2]
[350089910,1737615033692,-500.0,0.00019178,2]
[350089911,1737615033702,-500.0,0.00019178,2]
[350089913,1737615033711,-500.0,0.00019178,2]
[350089915,1737615033721,-519.14,0.00019178,2]
[350089917,1737615033731,-500.0,0.00019178,2]
[350089920,1737615033743,-500.0,0.00019178,2]
[350089922,1737615033752,-801.55,0.00019178,2]
[350089924,1737615033762,-500.0,0.00019178,2]
[350089926,1737615033772,-500.0,0.00019178,2]
[350089928,1737615033782,-513.86516078,0.00019178,2]
[350089930,1737615033792,-500.0,0.00019178,2]
[350089932,1737615033802,-500.0,0.00019178,2]
[350089933,1737615033812,-500.0,0.00019178,2]
[350089934,1737615033822,-500.0,0.00019178,2]
[350089935,1737615033832,-406.03795876,0.00019178,2]
[350089936,1737615033842,-506.23356318,0.00019178,2]
[350089937,1737615033851,-505.82860677,0.00019178,2]
[350089938,1737615033861,-500.0,0.00019178,2]
[350089939,1737615033871,-500.0,0.00019178,2]
[350089940,1737615033880,-500.0,0.00019178,2]
[350089941,1737615033890,-500.0,0.00019178,2]
[350089942,1737615033899,-500.0,0.00019178,2]
[350089943,1737615033910,-500.0,0.00019178,2]
[350089944,1737615033919,-500.0,0.00019178,2]
[350089945,1737615033929,-500.0,0.00019178,2]
[350089946,1737615033938,-500.0,0.00019178,2]
[350089947,1737615033947,-500.0,0.00019178,2]
[350089948,1737615033957,-500.0,0.00019178,2]
[350089949,1737615033966,-504.12324223,0.00019178,2]
[350089950,1737615033975,-500.0,0.00019178,2]
[350089951,1737615033984,-500.0,0.00019178,2]
[350089952,1737615033993,-507.24859913,0.00019178,2]
[350089954,1737615034003,-500.0,0.00019178,2]
[350089956,1737615034014,-500.0,0.00019178,2]
[350089958,1737615034023,-529.79,0.00019178,2]
[350089960,1737615034033,-500.0,0.00019178,2]